bitfinex-derivatives/quotes_BTCF0:USTF0_20241022
["timestamp","ask_amount","ask_price","bid_price","bid_amount"]
[1729599851910,0.7707652,67165.0,67164.0,0.001]
[1729599852213,0.9407652,67165.0,67158.0,0.00223287]
[1729599852511,0.775298,67159.0,67158.0,0.00223287]
[1729599852724,0.605298,67159.0,67158.0,0.10012562]
[1729599852906,0.7008,67159.0,67149.0,0.08916219]
[1729599853110,0.074509,67149.0,67148.0,0.08916219]
[1729599853310,0.07451,67148.0,67146.0,0.08928357]
[1729599853610,0.074513,67147.0,67146.0,0.074512]
[1729599853807,0.67464,67149.0,67145.0,0.08928357]
[1729599854014,0.244513,67146.0,67145.0,0.08928357]
[1729599854408,0.388353,67146.0,67145.0,0.074514]
[1729599855106,0.388353,67146.0,67145.0,0.076514]
[1729599855708,0.244513,67146.0,67145.0,0.076514]
[1729599855911,0.388353,67146.0,67145.0,0.076514]
[1729599856114,0.14484,67146.0,67145.0,0.076514]
[1729599856518,0.14484,67146.0,67145.0,0.074514]
[1729599856715,0.14584,67146.0,67145.0,0.076514]
[1729599857117,0.31584,67146.0,67145.0,0.076514]
[1729599857317,0.390353,67146.0,67145.0,0.076514]
[1729599857914,0.390353,67146.0,67145.0,0.002]
[1729599860221,0.389353,67146.0,67143.0,0.074516]
[1729599860412,0.435315,67144.0,67143.0,0.11910303]
[1729599860817,0.50464,67144.0,67143.0,0.074516]
[1729599861217,0.3608,67144.0,67143.0,0.074516]
[1729599861424,0.50464,67144.0,67143.0,0.074516]
[1729599861627,0.67464,67144.0,67143.0,0.074516]
[1729599861823,0.749155,67144.0,67143.0,0.076516]
[1729599862419,0.749195,67144.0,67143.0,0.076516]
[1729599862813,0.67468,67144.0,67143.0,0.076516]
[1729599864020,0.5308,67144.0,67143.0,0.076516]
[1729599864213,0.50468,67144.0,67143.0,0.076516]
[1729599864623,0.67468,67144.0,67143.0,0.076516]
[1729599865721,0.605315,67144.0,67143.0,0.076516]
[1729599865917,0.749195,67144.0,67143.0,0.076516]
[1729599866931,0.749195,67144.0,67143.0,0.002]
[1729599870729,0.749195,67144.0,67139.0,0.07452]
[1729599870924,0.605319,67140.0,67139.0,0.07452]
[1729599873330,0.605319,67140.0,67134.0,0.07434976]
[1729599873539,0.605325,67135.0,67134.0,0.074526]
[1729599875523,0.606325,67135.0,67134.0,0.074526]
[1729599876326,0.607325,67135.0,67134.0,0.076526]
[1729599877121,0.607325,67135.0,67134.0,0.002]
[1729599877522,0.607325,67135.0,67134.0,0.076526]
[1729599878834,0.751205,67135.0,67134.0,0.076526]
[1729599880129,0.607325,67135.0,67134.0,0.076526]
[1729599880331,0.751205,67135.0,67134.0,0.076526]
[1729599881237,0.751205,67135.0,67134.0,0.002]
[1729599881637,0.751205,67135.0,67121.0,0.07454]
[1729599881638,0.074536,67125.0,67121.0,0.11916265]
[1729599881840,0.605336,67125.0,67122.0,0.074538]
[1729599882034,0.605336,67125.0,67118.0,0.04462265]
[1729599882035,0.605336,67125.0,67117.0,0.074545]
[1729599882245,0.775336,67125.0,67119.0,0.074542]
[1729599882937,0.605336,67125.0,67116.0,0.00223487]
[1729599883135,0.606336,67125.0,67118.0,0.074543]
[1729599883332,0.606336,67125.0,67115.0,0.008]
[1729599883532,0.606336,67125.0,67116.0,0.074545]
[1729599883741,0.777336,67125.0,67116.0,0.074545]
[1729599883937,0.607336,67125.0,67117.0,0.074544]
[1729599884143,0.607336,67125.0,67115.0,0.008]
[1729599884144,0.607336,67125.0,67118.0,0.074543]
[1729599884451,0.777336,67125.0,67116.0,0.074546]
[1729599884649,0.777336,67125.0,67115.0,0.008]
[1729599884839,0.608336,67125.0,67116.0,0.074546]
[1729599885234,0.63526078,67125.0,67116.0,0.074546]
[1729599885643,0.78794078,67125.0,67116.0,0.074546]
[1729599885851,1.40486078,67125.0,67122.0,0.05944147]
[1729599886050,0.605338,67123.0,67122.0,0.05944147]
[1729599886245,0.074539,67122.0,67121.0,0.05944147]
[1729599886440,0.07454,67121.0,67120.0,0.06984147]
[1729599886842,0.07454,67121.0,67120.0,0.0104]
[1729599887046,0.24454,67121.0,67120.0,0.0104]
[1729599888244,0.24454,67121.0,67120.0,0.00499048]
[1729599888543,0.24454,67121.0,67120.0,0.04955243]
[1729599888748,0.22626,67121.0,67120.0,0.04955243]
[1729599889154,0.22626,67121.0,67120.0,0.00499048]
[1729599889846,0.008,67121.0,67120.0,0.07953148]
[1729599890049,0.017,67121.0,67120.0,0.07953148]
[1729599890351,0.017,67121.0,67120.0,0.17780953]
[1729599890553,0.017,67121.0,67120.0,0.25203354]
[1729599890749,0.187,67121.0,67120.0,0.25203354]
[1729599891258,0.26154,67121.0,67120.0,0.07953148]
[1729599892146,0.017,67121.0,67120.0,0.07953148]
[1729599892355,0.187,67121.0,67120.0,0.07953148]
[1729599893359,0.33872,67121.0,67120.0,0.07953148]
[1729599893553,0.41326,67121.0,67120.0,0.07953148]
[1729599893750,0.33872,67121.0,67120.0,0.07953148]
[1729599894156,0.41326,67121.0,67120.0,0.07953148]
[1729599894348,0.41326,67121.0,67120.0,0.12407767]
[1729599894962,0.41326,67121.0,67120.0,0.07953148]
[1729599895345,0.41326,67121.0,67120.0,0.00499048]
[1729599895649,0.41326,67121.0,67120.0,0.07953148]
[1729599898464,0.26154,67121.0,67120.0,0.00499048]
[1729599898662,0.41326,67121.0,67120.0,0.00499048]
[1729599899764,0.41326,67121.0,67120.0,0.12411796]
[1729599900857,0.26154,67121.0,67120.0,0.07953148]
[1729599901165,0.41326,67121.0,67120.0,0.00499048]
[1729599902457,0.41326,67121.0,67120.0,0.07921449]
[1729599903060,0.41326,67121.0,67120.0,0.15375549]
[1729599903367,0.41326,67121.0,67120.0,0.25238631]
[1729599903663,0.41326,67121.0,67120.0,0.1781623]
[1729599905966,0.33872,67121.0,67120.0,0.17817905]
[1729599906167,0.017,67121.0,67120.0,0.17817905]
[1729599906373,0.16872,67121.0,67120.0,0.17817905]
[1729599906671,0.017,67121.0,67120.0,0.17817905]
[1729599906871,0.26154,67121.0,67120.0,0.17817905]
[1729599907669,0.017,67121.0,67120.0,0.17817905]
[1729599908179,0.017,67121.0,67120.0,0.07953148]
[1729599908365,0.16826482,67123.0,67122.0,0.074539]
[1729599908564,0.074538,67123.0,67122.0,0.074539]
[1729599908769,0.02692478,67125.0,67122.0,0.074539]
[1729599908974,0.074536,67126.0,67122.0,0.074539]
[1729599909269,0.46187815,67128.0,67127.0,0.074534]
[1729599909461,0.38734515,67128.0,67127.0,0.244534]
[1729599910174,0.38734515,67128.0,67127.0,0.34278796]
[1729599910471,0.38734515,67128.0,67127.0,0.45999206]
[1729599910665,0.38734515,67128.0,67127.0,0.34278796]
[1729599910865,0.38734515,67128.0,67127.0,0.46009464]
[1729599911072,0.38734515,67128.0,67127.0,0.34278796]
[1729599911475,0.38734515,67128.0,67127.0,0.46001584]
[1729599911778,0.15424,67133.0,67127.0,0.78970796]
[1729599911969,0.228761,67138.0,67137.0,0.074521]
[1729599912276,0.074521,67138.0,67137.0,0.34277496]
[1729599912462,0.68504,67140.0,67137.0,0.09825396]
[1729599912664,0.759559,67140.0,67139.0,0.07452]
[1729599912867,0.759559,67140.0,67139.0,0.17277396]
[1729599913368,0.759559,67140.0,67139.0,0.07452]
[1729599913570,0.605319,67140.0,67139.0,0.07452]
[1729599913766,0.3608,67140.0,67139.0,0.07452]
[1729599914070,0.3718,67140.0,67139.0,0.07552]
[1729599914470,0.3848,67140.0,67139.0,0.28993414]
[1729599914771,0.3848,67140.0,67139.0,0.17333838]
[1729599914772,0.024,67140.0,67139.0,0.17333838]
[1729599915078,0.011,67140.0,67139.0,0.73654904]
[1729599915267,0.011,67140.0,67139.0,1.33641895]
[1729599915582,0.00626527,67140.0,67139.0,1.34953498]
[1729599915962,0.00626527,67140.0,67139.0,1.13547603]
[1729599916178,2.7e-07,67140.0,67139.0,1.13547603]
[1729599916376,0.3608,67146.0,67139.0,1.13447603]
[1729599916676,0.3608,67146.0,67145.0,0.244514]
[1729599917178,0.3608,67146.0,67145.0,0.691314]
[1729599918168,0.3698,67146.0,67145.0,0.69697367]
[1729599918470,0.3698,67146.0,67145.0,0.692314]
[1729599918670,0.017,67146.0,67145.0,0.69697351]
[1729599919265,0.012,67146.0,67145.0,1.293314]
[1729599919477,0.02646463,67157.0,67151.0,0.074507]
[1729599919667,0.3608,67158.0,67156.0,0.244501]
[1729599919865,0.3608,67165.0,67156.0,0.244501]
[1729599919866,0.3608,67165.0,67164.0,0.074493]
[1729599920069,0.3608,67165.0,67164.0,0.691173]
[1729599920372,0.38830335,67165.0,67164.0,0.691173]
[1729599921367,0.3698,67165.0,67164.0,0.692173]
[1729599922171,0.3608,67165.0,67164.0,0.693173]
[1729599922876,0.3608,67171.0,67164.0,0.693173]
[1729599923073,0.3608,67171.0,67170.0,0.244486]
[1729599923568,0.3608,67171.0,67170.0,0.691126]
[1729599924879,0.02707927,67177.0,67176.0,0.074479]
[1729599925181,0.3608,67178.0,67177.0,0.074478]
[1729599925676,0.38704905,67178.0,67177.0,0.074478]
[1729599925888,0.3608,67178.0,67177.0,0.074478]
[1729599926176,0.02638052,67182.0,67177.0,0.521038]
[1729599926380,0.02638052,67182.0,67176.0,0.244479]
[1729599926381,0.3608,67186.0,67181.0,0.244474]
[1729599926570,0.3608,67186.0,67185.0,0.244469]
[1729599928281,0.38808742,67186.0,67185.0,0.244469]
[1729599928482,0.39308742,67186.0,67185.0,0.246469]
[1729599930277,0.39308742,67186.0,67185.0,0.245469]
[1729599930479,0.39308742,67186.0,67185.0,0.246469]
[1729599930879,0.3658,67186.0,67185.0,0.246469]
[1729599931178,0.3658,67186.0,67185.0,0.245469]
[1729599931179,0.3608,67186.0,67185.0,0.245469]
[1729599931376,0.3658,67186.0,67185.0,0.246469]
[1729599933274,0.3658,67186.0,67185.0,0.692989]
[1729599933275,0.005,67186.0,67185.0,0.692989]
[1729599933776,0.3608,67204.0,67185.0,1.292989]
[1729599933972,0.3608,67204.0,67203.0,0.244449]
[1729599934179,0.3608,67204.0,67203.0,0.074449]
[1729599934779,0.5580947,67204.0,67194.0,0.17]
[1729599935085,0.605257,67197.0,67196.0,0.074457]
[1729599935474,0.3608,67197.0,67196.0,0.074457]
[1729599936688,0.3608,67197.0,67196.0,0.075457]
[1729599937784,0.3608,67197.0,67196.0,0.076457]
[1729599943892,0.38703541,67197.0,67196.0,0.076457]
[1729599946798,0.46149141,67197.0,67196.0,0.076457]
[1729599946995,0.38703541,67197.0,67196.0,0.076457]
[1729599948995,0.38703541,67197.0,67196.0,0.12103149]
[1729599949293,0.38703541,67197.0,67196.0,0.076457]
[1729599950287,0.38703541,67197.0,67196.0,0.13588965]
[1729599950889,0.3608,67197.0,67196.0,0.13588965]
[1729599951284,0.3618,67197.0,67196.0,0.076457]
[1729599951794,0.3618,67197.0,67196.0,0.075457]
[1729599952005,0.3618,67197.0,67196.0,0.246457]
[1729599952290,0.3618,67197.0,67196.0,0.34122811]
[1729599952491,0.3618,67197.0,67196.0,0.78766811]
[1729599952899,0.3618,67197.0,67196.0,0.61766811]
[1729599953091,0.3618,67197.0,67196.0,0.692897]
[1729599953293,0.001,67197.0,67196.0,0.692897]
[1729599953994,0.3608,67204.0,67203.0,0.074449]
[1729599954301,0.3608,67204.0,67203.0,0.244449]
[1729599955596,0.3618,67204.0,67203.0,0.245449]
[1729599955899,0.3618,67204.0,67203.0,0.246449]
[1729599957087,0.436248,67204.0,67203.0,0.002]
[1729599957291,0.436248,67204.0,67203.0,0.172]
[1729599957500,0.436248,67204.0,67203.0,0.246449]
[1729599957800,0.436248,67204.0,67203.0,0.172]
[1729599958501,0.3618,67204.0,67203.0,0.246449]
[1729599958900,0.436248,67204.0,67203.0,0.246449]
[1729599959087,0.47570151,67204.0,67203.0,0.246449]
[1729599960195,0.47562613,67204.0,67203.0,0.246449]
[1729599961199,0.436248,67204.0,67203.0,0.246449]
[1729599963302,0.3618,67204.0,67203.0,0.246449]
[1729599964088,0.3618,67204.0,67203.0,0.32072779]
[1729599965595,0.436248,67204.0,67203.0,0.32072779]
[1729599966703,0.3618,67204.0,67203.0,0.32072779]
[1729599966899,0.3618,67204.0,67203.0,0.41537291]
[1729599968002,0.436248,67204.0,67203.0,0.41537291]
[1729599968203,0.47591937,67204.0,67203.0,0.246449]
[1729599969207,0.40147137,67204.0,67203.0,0.246449]
[1729599969707,0.47591937,67204.0,67203.0,0.246449]
[1729599970100,0.40147137,67204.0,67203.0,0.246449]
[1729599974410,0.40147137,67204.0,67203.0,0.186449]
[1729599976098,0.3618,67204.0,67203.0,0.28101945]
[1729599976810,0.436248,67204.0,67203.0,0.17101945]
[1729599977013,0.436248,67204.0,67203.0,0.28101945]
[1729599978311,0.436248,67204.0,67203.0,0.37016843]
[1729599978812,0.436248,67204.0,67203.0,0.28101945]
[1729599981708,0.436248,67204.0,67203.0,0.37016843]
[1729599982406,0.436248,67204.0,67203.0,0.37034782]
[1729599982607,0.436248,67204.0,67203.0,0.28101945]
[1729599983013,0.546248,67204.0,67203.0,0.09657045]
[1729599983212,0.07446,67196.0,67195.0,0.074458]
[1729599983514,0.58571225,67196.0,67195.0,0.074458]
[1729599984006,0.40125225,67196.0,67195.0,0.184458]
[1729599984206,0.40187673,67196.0,67195.0,0.184458]
[1729599984613,0.42906999,67196.0,67195.0,0.184458]
[1729599985710,0.42906999,67196.0,67195.0,0.074458]
[1729599986006,0.43006999,67196.0,67195.0,0.074458]
[1729599989015,0.4028531,67196.0,67195.0,0.074458]
[1729599990410,0.3618,67196.0,67195.0,0.074458]
[1729599990602,0.40283875,67196.0,67195.0,0.074458]
[1729599991305,0.3618,67196.0,67195.0,0.074458]
[1729599992213,0.001,67196.0,67195.0,0.074458]
[1729599994614,0.001,67196.0,67195.0,0.18593612]
[1729599997211,0.001,67196.0,67195.0,0.2122808]
[1729599998116,0.001,67196.0,67195.0,0.30563311]
[1729599998311,0.001,67196.0,67195.0,0.19415499]
[1729599998511,0.001,67196.0,67195.0,0.19416374]
[1729599998708,0.3608,67203.0,67202.0,0.07445]
[1729599998907,0.3608,67203.0,67202.0,0.38781106]
[1729599999309,0.3608,67212.0,67211.0,0.07444]
[1729599999510,0.3608,67212.0,67211.0,0.24393395]
[1729599999816,0.3608,67212.0,67211.0,0.18444]
[1729600000118,0.3608,67212.0,67211.0,0.24392023]
[1729600000313,0.3608,67212.0,67211.0,0.18444]
[1729600000714,0.3618,67212.0,67211.0,0.18544]
[1729600001622,0.3628,67212.0,67211.0,0.002]
[1729600001821,0.437239,67212.0,67211.0,0.002]
[1729600006228,0.5263408,67212.0,67211.0,0.002]
[1729600007829,0.52634004,67212.0,67211.0,0.002]
[1729600013321,0.437239,67212.0,67211.0,0.002]
[1729600013831,0.437239,67212.0,67211.0,0.07644]
[1729600017335,0.437239,67212.0,67211.0,0.002]
[1729600017729,0.437239,67212.0,67211.0,0.07644]
[1729600018134,0.437239,67212.0,67211.0,0.002]
[1729600018329,0.437239,67212.0,67211.0,0.07644]
[1729600018635,0.437239,67212.0,67211.0,0.002]
[1729600019027,0.437239,67212.0,67211.0,0.07644]
[1729600019225,0.3628,67212.0,67211.0,0.29104149]
[1729600019430,0.3628,67212.0,67211.0,0.24644]
[1729600021438,0.3628,67212.0,67211.0,0.32080744]
[1729600021639,0.3628,67212.0,67211.0,0.24644]
[1729600022843,0.3628,67212.0,67211.0,0.32080744]
[1729600023247,0.002,67212.0,67211.0,0.6928]
[1729600023543,0.074424,67227.0,67225.0,0.074425]
[1729600023734,0.3608,67230.0,67225.0,0.244425]
[1729600023927,0.07665619,67226.0,67225.0,0.244425]
[1729600024329,0.00223219,67226.0,67225.0,0.184425]
[1729600024736,0.00223219,67226.0,67225.0,0.185425]
[1729600024934,0.00323219,67226.0,67225.0,0.185425]
[1729600025337,0.00323219,67226.0,67225.0,0.22999203]
[1729600025739,0.00323219,67226.0,67225.0,0.33999203]
[1729600026044,0.00323219,67226.0,67225.0,0.33999078]
[1729600026237,0.00223219,67226.0,67225.0,0.245425]
[1729600026441,0.00223219,67226.0,67225.0,0.246425]
[1729600027343,0.00223219,67226.0,67225.0,0.29096484]
[1729600027644,0.00223219,67226.0,67225.0,0.246425]
[1729600028338,0.09408583,67226.0,67225.0,0.246425]
[1729600028542,0.09408583,67226.0,67225.0,0.692665]
[1729600028743,0.04473649,67226.0,67225.0,0.692665]
[1729600029040,0.074413,67236.0,67225.0,0.692665]
[1729600029245,0.09260091,67235.0,67234.0,0.074415]
[1729600029639,0.09260091,67235.0,67225.0,0.002]
[1729600029640,0.04975089,67235.0,67227.0,0.074423]
[1729600029834,0.04934348,67234.0,67230.0,0.074419]
[1729600030043,0.3608,67237.0,67236.0,0.074413]
[1729600030044,0.38780323,67237.0,67236.0,0.074413]
[1729600030247,0.43718431,67237.0,67236.0,0.074413]
[1729600030542,0.43718431,67237.0,67236.0,0.244413]
[1729600030745,0.51159631,67237.0,67236.0,0.244413]
[1729600032544,0.51159631,67237.0,67236.0,0.246413]
[1729600032952,0.51159631,67237.0,67236.0,0.002]
[1729600033346,0.56767428,67237.0,67236.0,0.002]
[1729600033741,0.56767428,67237.0,67236.0,0.00088414]
[1729600036344,0.46221523,67237.0,67236.0,0.00088414]
[1729600040662,0.46221523,67237.0,67236.0,0.07529714]
[1729600043458,0.61081987,67237.0,67236.0,0.07529714]
[1729600043852,0.61081987,67237.0,67236.0,0.00088414]
[1729600048063,0.61081987,67237.0,67236.0,0.00038752]
[1729600048266,0.77299336,67237.0,67236.0,0.00038752]
[1729600048555,0.83962431,67237.0,67236.0,0.00038752]
[1729600049358,0.67745082,67237.0,67236.0,0.00038752]
[1729600050453,0.77350117,67237.0,67236.0,0.00038752]
[1729600050759,0.84013212,67237.0,67236.0,0.00038752]
[1729600051453,0.66756051,67237.0,67236.0,0.00038752]
[1729600051653,0.50487921,67237.0,67236.0,0.00038752]
[1729600053662,0.50500614,67237.0,67236.0,0.00038752]
[1729600053859,0.46221523,67237.0,67236.0,0.00038752]
[1729600054262,0.57221523,67237.0,67236.0,0.00038752]
[1729600055061,0.61493336,67237.0,67236.0,0.00038752]
[1729600055651,0.57221523,67237.0,67236.0,0.00038752]
[1729600057165,0.61494163,67237.0,67236.0,0.00038752]
[1729600058464,0.72108577,67237.0,67236.0,0.00038752]
[1729600062772,0.72108577,67237.0,67208.0,0.074443]
[1729600062773,0.074446,67209.0,67208.0,0.074443]
[1729600063064,0.074446,67209.0,67197.0,0.3608]
[1729600063065,0.07445,67203.0,67202.0,0.074448]
[1729600063260,0.12276302,67203.0,67202.0,0.184448]
[1729600063458,0.21941539,67203.0,67202.0,0.184448]
[1729600063664,0.17110237,67203.0,67202.0,0.184448]
[1729600063973,0.21941539,67203.0,67202.0,0.184448]
[1729600064368,0.16438596,67203.0,67202.0,0.184448]
[1729600064869,0.08993596,67203.0,67202.0,0.294448]
[1729600065164,0.3608,67209.0,67208.0,0.074444]
[1729600065384,0.3608,67209.0,67208.0,0.184444]
[1729600065762,0.436243,67209.0,67208.0,0.075444]
[1729600065965,0.436243,67209.0,67208.0,0.185444]
[1729600066274,0.436243,67209.0,67208.0,0.245444]
[1729600066572,0.436243,67209.0,67208.0,0.246444]
[1729600067171,0.436243,67209.0,67208.0,0.002]
[1729600067370,0.436243,67209.0,67208.0,0.172]
[1729600068264,0.436243,67209.0,67208.0,0.30580813]
[1729600068467,0.436243,67209.0,67208.0,0.30580727]
[1729600069066,0.436243,67209.0,67208.0,0.246444]
[1729600076682,0.436243,67209.0,67208.0,0.076444]
[1729600077070,0.436243,67209.0,67208.0,0.246444]
[1729600079273,0.075443,67209.0,67208.0,0.246444]
[1729600079773,0.001,67209.0,67208.0,0.246444]
[1729600083578,0.001,67209.0,67208.0,0.076444]
[1729600083787,0.001,67209.0,67208.0,0.246444]
[1729600083788,0.075443,67209.0,67208.0,0.246444]
[1729600084985,0.001,67209.0,67208.0,0.246444]
[1729600085179,0.3608,67213.0,67212.0,0.074439]
[1729600085383,0.204512,67219.0,67218.0,0.074433]
[1729600085582,0.24582697,67219.0,67218.0,0.244433]
[1729600085789,0.11574697,67219.0,67218.0,0.244433]
[1729600085985,0.04131497,67219.0,67218.0,0.244433]
[1729600086190,0.38696925,67221.0,67220.0,0.07443]
[1729600086487,0.42851386,67221.0,67220.0,0.07443]
[1729600087081,0.50294286,67221.0,67220.0,0.07443]
[1729600088287,0.50294286,67221.0,67220.0,0.24543]
[1729600088495,0.46139825,67221.0,67220.0,0.24543]
[1729600089081,0.46139825,67221.0,67220.0,0.24643]
[1729600089483,0.10059825,67221.0,67220.0,0.24643]
[1729600090191,0.46139825,67221.0,67220.0,0.24643]
[1729600090584,0.10059825,67221.0,67220.0,0.24643]
[1729600091691,0.46139825,67221.0,67220.0,0.24643]
[1729600092094,0.38696925,67221.0,67220.0,0.24643]
[1729600092283,0.3608,67221.0,67220.0,0.24643]
[1729600092485,0.3608,67221.0,67220.0,0.07643]
[1729600096392,0.3608,67221.0,67220.0,0.12100808]
[1729600096595,0.3608,67221.0,67220.0,0.07643]
[1729600096596,0.4518214,67221.0,67220.0,0.07643]
[1729600097295,0.0910214,67221.0,67220.0,0.07643]
[1729600101201,0.0251214,67221.0,67220.0,0.07643]
[1729600101397,0.02729854,67224.0,67223.0,0.074427]
[1729600101596,0.074425,67225.0,67223.0,0.17]
[1729600101905,0.074425,67225.0,67224.0,0.074426]
[1729600102101,0.12936891,67225.0,67224.0,0.074426]
[1729600103403,0.12936891,67225.0,67224.0,0.075426]
[1729600103603,0.074425,67225.0,67224.0,0.075426]
[1729600103905,0.10066131,67225.0,67224.0,0.075426]
[1729600104692,0.10066131,67225.0,67224.0,0.076426]
[1729600104894,0.10066131,67225.0,67224.0,0.002]
[1729600105794,0.074428,67222.0,67215.0,0.04457493]
[1729600105997,0.074439,67214.0,67213.0,0.074438]
[1729600107805,0.074439,67214.0,67213.0,0.075438]
[1729600108305,0.075439,67214.0,67213.0,0.076438]
[1729600109004,0.075439,67214.0,67213.0,0.002]
[1729600109396,0.245439,67214.0,67213.0,0.002]
[1729600109607,0.245439,67214.0,67213.0,0.076438]
[1729600110309,0.075439,67214.0,67213.0,0.076438]
[1729600110802,0.10216506,67214.0,67213.0,0.076438]
[1729600113711,0.10216506,67214.0,67213.0,0.12101293]
[1729600114010,0.10216506,67214.0,67213.0,0.002]
[1729600114506,0.21216506,67214.0,67213.0,0.002]
[1729600118603,0.35358956,67214.0,67213.0,0.002]
[1729600120814,0.24358956,67214.0,67213.0,0.002]
[1729600120999,0.24358956,67214.0,67213.0,0.076438]
[1729600121000,0.29990914,67214.0,67213.0,0.076438]
[1729600122204,0.18990914,67214.0,67213.0,0.186438]
[1729600122404,0.32494914,67214.0,67213.0,0.076438]
[1729600122810,0.18990914,67214.0,67213.0,0.076438]
[1729600123012,0.14276764,67214.0,67213.0,0.076438]
[1729600125310,0.06832864,67214.0,67213.0,0.076438]
[1729600125506,0.11559451,67214.0,67213.0,0.076438]
[1729600125707,0.02772606,67214.0,67213.0,0.076438]
[1729600128516,0.001,67214.0,67213.0,0.076438]
[1729600129019,0.075437,67214.0,67213.0,0.186438]
[1729600131022,0.075437,67214.0,67213.0,0.076438]
[1729600131318,0.075437,67214.0,67213.0,0.186438]
[1729600133806,0.1162705,67214.0,67213.0,0.186438]
[1729600134407,0.1637673,67214.0,67213.0,0.186438]
[1729600136922,0.1637673,67214.0,67213.0,0.076438]
[1729600137112,0.27384792,67214.0,67213.0,0.076438]
[1729600138117,0.185437,67214.0,67213.0,0.076438]
[1729600138420,0.27359583,67214.0,67213.0,0.076438]
[1729600139818,0.2262315,67214.0,67213.0,0.076438]
[1729600142823,0.185437,67214.0,67213.0,0.076438]
[1729600147324,0.075437,67214.0,67213.0,0.076438]
[1729600147519,0.185437,67214.0,67213.0,0.076438]
[1729600149920,0.075437,67214.0,67213.0,0.076438]
[1729600151729,0.11645774,67214.0,67213.0,0.076438]
[1729600155024,0.22645774,67214.0,67207.0,0.074445]
[1729600155229,0.184444,67208.0,67207.0,0.074445]
[1729600156329,0.184444,67208.0,67207.0,0.075445]
[1729600156626,0.22602124,67208.0,67207.0,0.076445]
[1729600156827,0.11602124,67208.0,67207.0,0.17037108]
[1729600157025,0.22602124,67208.0,67207.0,0.17037108]
[1729600157933,0.22602124,67208.0,67207.0,0.16937108]
[1729600158131,0.22602124,67208.0,67207.0,0.17037108]
[1729600158132,0.22802124,67208.0,67207.0,0.17037108]
[1729600158628,0.22802124,67208.0,67207.0,0.24475108]
[1729600158822,0.25539669,67208.0,67207.0,0.24475108]
[1729600160030,0.14539669,67208.0,67207.0,0.24475108]
[1729600160225,0.14539669,67208.0,67207.0,0.17037108]
[1729600161022,0.04357724,67208.0,67207.0,0.28013872]
[1729600161225,0.04357724,67208.0,67207.0,0.25945079]
[1729600161636,0.04357724,67208.0,67207.0,0.17013872]
[1729600161933,0.04357724,67208.0,67207.0,0.28162891]
[1729600162434,0.04357724,67208.0,67207.0,0.17013872]
[1729600163532,0.04357724,67208.0,67207.0,0.28158401]
[1729600163729,0.04357724,67208.0,67207.0,0.17013872]
[1729600166828,0.077444,67208.0,67207.0,0.17013872]
[1729600167029,0.077444,67208.0,67207.0,0.25940406]
[1729600167229,0.077444,67208.0,67207.0,0.17013872]
[1729600167430,0.077444,67208.0,67207.0,0.25940406]
[1729600167941,0.077444,67208.0,67207.0,0.17013872]
[1729600170042,0.077444,67208.0,67207.0,0.28013872]
[1729600170545,0.077444,67208.0,67207.0,0.2801483]
[1729600171734,0.11830571,67208.0,67207.0,0.186445]
[1729600173049,0.11830571,67208.0,67207.0,0.076445]
[1729600173245,0.11830571,67208.0,67207.0,0.186445]
[1729600178337,0.04386171,67208.0,67207.0,0.186445]
[1729600178838,0.003,67208.0,67207.0,0.28010867]
[1729600180149,0.003,67208.0,67207.0,0.28011574]
[1729600182046,0.003,67208.0,67207.0,0.39166022]
[1729600183643,0.003,67208.0,67207.0,0.28011574]
[1729600184345,0.003,67208.0,67207.0,0.3916909]
[1729600184945,0.003,67208.0,67207.0,0.39138998]
[1729600186444,0.003,67208.0,67207.0,0.94774998]
[1729600186843,0.003,67208.0,67207.0,0.78744657]
[1729600187039,0.003,67208.0,67207.0,0.742805]
[1729600187246,0.003,67208.0,67207.0,0.78744657]
[1729600187445,0.003,67208.0,67207.0,0.742805]
[1729600188449,0.003,67208.0,67207.0,0.632805]
[1729600188847,0.003,67208.0,67207.0,0.742805]
[1729600189241,0.003,67208.0,67207.0,0.632805]
[1729600189444,0.3608,67220.0,67207.0,0.66836]
[1729600189754,0.3608,67220.0,67219.0,0.184424]
[1729600189953,0.40205875,67220.0,67219.0,0.184424]
[1729600190455,0.435223,67220.0,67219.0,0.184424]
[1729600190655,0.47948878,67220.0,67219.0,0.184424]
[1729600191246,0.50644048,67220.0,67219.0,0.185424]
[1729600191441,0.4651747,67220.0,67219.0,0.186424]
[1729600191855,0.3907517,67220.0,67219.0,0.186424]
[1729600196953,0.4651747,67220.0,67219.0,0.186424]
[1729600197453,0.4651747,67220.0,67219.0,0.076424]
[1729600199657,0.4651747,67220.0,67219.0,0.186424]
[1729600201657,0.5751747,67220.0,67219.0,0.186424]
[1729600202166,0.4651747,67220.0,67219.0,0.186424]
[1729600202752,0.50621814,67220.0,67219.0,0.186424]
[1729600203055,0.4651747,67220.0,67219.0,0.186424]
[1729600203457,0.50621362,67220.0,67219.0,0.186424]
[1729600203657,0.4651747,67220.0,67219.0,0.186424]
[1729600204257,0.074429,67215.0,67200.0,0.04460459]
[1729600204456,0.074429,67215.0,67208.0,0.074436]
[1729600204457,0.11,67211.0,67208.0,0.074436]
[1729600204661,0.074436,67209.0,67208.0,0.074436]
[1729600204866,0.074436,67209.0,67208.0,0.184436]
[1729600205356,0.074436,67209.0,67206.0,0.4708]
[1729600205357,0.184436,67209.0,67206.0,0.4708]
[1729600205656,0.074437,67207.0,67206.0,0.002]
[1729600205864,0.184437,67207.0,67206.0,0.002]
[1729600206159,0.22490722,67207.0,67206.0,0.002]
[1729600206364,0.22490722,67207.0,67206.0,0.001]
[1729600206554,0.22490722,67207.0,67206.0,0.002]
[1729600206867,0.184437,67207.0,67206.0,0.002]
[1729600207053,0.224805,67207.0,67206.0,0.001]
[1729600207251,0.074442,67204.0,67203.0,0.074441]
[1729600208663,0.076442,67204.0,67203.0,0.074441]